fUST/lending_fUST_20240924
["ID","MTS","AMOUNT","RATE_DAILY","PERIOD"]
[339045253,1727173838336,-1000.0,0.00028021,5]
[339045255,1727173838346,-206.29869456,0.00028048,5]
[339045257,1727173838355,-1000.0,0.00028048,5]
[339045259,1727173838364,-261.6,0.00028563,4]
[339045261,1727173838374,-433.56016349,0.00028731,5]
[339045263,1727173838384,-1000.0,0.00028759,5]
[339045264,1727173838394,-282.201689,0.000288,7]
[339045265,1727173838403,-167.181,0.00028806,21]
[339045266,1727173838413,-420.0,0.00028874,2]
[339045267,1727173838423,-855.16834963,0.00029,2]
[339045268,1727173838432,-36059.27720271,0.00029,2]
[339045269,1727173838442,-150.112233,0.000291,9]
[339045270,1727173838451,-150.112233,0.000293,6]
[339045271,1727173838460,-6641.7842657,0.00029399,2]
[339045272,1727173838470,-150.112233,0.000295,8]
[339045273,1727173838479,-150.0,0.00029635,2]
[339045274,1727173838489,-153.0,0.00029671,2]
[339045275,1727173838498,-153.0,0.00029671,2]
[339045276,1727173838508,-153.0,0.00029671,2]
[339045277,1727173838517,-153.8303991,0.00029671,2]
[339045278,1727173838527,-150.112233,0.000297,6]
[339045279,1727173838537,-261.6,0.00029757,4]
[339045280,1727173838546,-496.26603193,0.000298,4]
[339045281,1727173838555,-6641.78426571,0.00029846,2]
[339045282,1727173838564,-1941.885253,0.000299,6]
[339045283,1727173838574,-150.112233,0.000299,6]
[339045284,1727173838583,-243.32938587,0.0002997,2]
[339045285,1727173838593,-243.32938587,0.00029975,2]
[339045286,1727173838602,-243.32938587,0.0002998,2]
[339045287,1727173838612,-243.32938587,0.00029985,2]
[339045288,1727173838621,-243.32938587,0.0002999,2]
[339045289,1727173838631,-500.0,0.0003,10]
[339045290,1727173838640,-2000.0,0.0003,14]
[339045291,1727173838651,-1000.0,0.0003,9]
[339045292,1727173838664,-1209.94331416,0.0003,3]
[339045293,1727173838673,-520.0,0.0003,2]
[339045294,1727173838682,-151.0,0.0003,120]
[339045295,1727173838691,-188.0,0.0003,2]
[339045296,1727173838700,-4000.0,0.0003,30]
[339045297,1727173838710,-243.0,0.0003,2]
[339045298,1727173838719,-219.0,0.0003,2]
[339045299,1727173838729,-151.0,0.0003,120]
[339045300,1727173838740,-1209.82254928,0.0003,3]
[339045301,1727173838750,-151.34866798,0.0003004,2]
[339045302,1727173838760,-177400.069928,0.0003006,4]
[339045303,1727173838770,-177400.069928,0.0003007,4]
[339045304,1727173838779,-500.0,0.00030089,2]
[339045305,1727173838789,-151.0,0.0003009,7]
[339045306,1727173838798,-151.0,0.0003009,7]
[339045307,1727173838807,-151.0,0.0003009,7]
[339045308,1727173838816,-151.0,0.0003009,7]
[339045309,1727173838826,-1134.382109,0.0003009,7]
[339045310,1727173838835,-1134.382109,0.0003009,7]
[339045311,1727173838845,-2012.752588,0.0003009,7]
[339045312,1727173838855,-151.0,0.0003009,7]
[339045313,1727173838864,-2012.752588,0.0003009,7]
[339045314,1727173838874,-152.754704,0.0003009,7]
[339045315,1727173838883,-151.0,0.0003009,7]
[339045316,1727173838892,-870.359719,0.0003009,7]
[339045317,1727173838902,-151.0,0.0003009,7]
[339045318,1727173838912,-151.0,0.0003009,7]
[339045319,1727173838924,-272.651362,0.0003009,7]
[339045320,1727173838934,-870.359719,0.0003009,7]
[339045321,1727173838944,-151.0,0.0003009,7]
[339045322,1727173838953,-151.0,0.0003009,7]
[339045323,1727173838962,-151.0,0.0003009,7]
[339045324,1727173838972,-250.684516,0.0003009,7]
[339045325,1727173838981,-151.0,0.0003009,7]
[339045326,1727173838990,-250.684516,0.0003009,7]
[339045327,1727173839000,-151.0,0.0003009,7]
[339045328,1727173839009,-151.0,0.0003009,7]
[339045329,1727173839019,-1688.227986,0.0003009,7]
[339045330,1727173839028,-151.0,0.0003009,7]
[339045331,1727173839037,-151.0,0.0003009,7]
[339045332,1727173839047,-1688.227986,0.0003009,7]
[339045333,1727173839141,-217.274054,0.0003009,7]
[339045334,1727173839152,-151.0,0.0003009,7]
[339045335,1727173839162,-217.274054,0.0003009,7]
[339045336,1727173839172,-151.0,0.0003009,7]
[339045337,1727173839182,-151.0,0.0003009,7]
[339045338,1727173839191,-3387.181448,0.0003009,7]
[339045339,1727173839200,-3387.181448,0.0003009,7]
[339045340,1727173839212,-151.0,0.0003009,7]
[339045341,1727173839221,-395.242181,0.0003009,7]
[339045342,1727173839231,-395.242181,0.0003009,7]
[339045343,1727173839241,-126583.15194352,0.000301,2]
[339045377,1727173839821,-53705.82326991,0.000301,2]
[339045379,1727173839831,-150.112233,0.000301,10]
[339045381,1727173839840,-150.112233,0.000301,6]
[339045383,1727173839850,-150.112233,0.000301,7]
[339045385,1727173839860,-150.112233,0.000301,9]
[339045387,1727173839870,-150.0,0.000301,2]
[339045389,1727173839880,-150.112233,0.000301,8]
[339045391,1727173839889,-150.112234,0.000301,10]
[339045393,1727173839899,-150.112233,0.000301,10]
[339045395,1727173839909,-150.112233,0.000301,8]
[339045397,1727173839919,-150.112233,0.000301,9]
[339045399,1727173839928,-150.112233,0.000301,6]
[339045401,1727173839938,-150.112233,0.000301,7]
[339045403,1727173839947,-150.112233,0.000301,5]
[339045405,1727173839957,-150.112233,0.000301,7]
[339045407,1727173839967,-150.112233,0.000301,7]
[339045409,1727173839978,-150.112233,0.000301,7]
[339045411,1727173839987,-150.112233,0.000301,5]
[339045413,1727173839996,-151.831294,0.000301,7]
[339045415,1727173840007,-151.862581,0.000301,7]
[339045417,1727173840018,-151.0,0.000301,7]
[339045419,1727173840027,-151.0,0.000301,7]
[339045421,1727173840036,-1134.382109,0.000301,7]
[339045423,1727173840046,-1134.382109,0.000301,7]
[339045425,1727173840055,-2012.752588,0.000301,7]
[339045427,1727173840065,-151.0,0.000301,7]
[339045429,1727173840075,-2012.752588,0.000301,7]
[339045431,1727173840084,-151.0,0.000301,7]
[339045433,1727173840094,-870.359719,0.000301,7]
[339045435,1727173840104,-151.0,0.000301,7]
[339045437,1727173840114,-151.0,0.000301,7]
[339045439,1727173840124,-870.359719,0.000301,7]
[339045441,1727173840134,-156.540564,0.000301,7]
[339045443,1727173840143,-155.107751,0.000301,7]
[339045445,1727173840153,-151.0,0.000301,7]
[339045447,1727173840163,-250.684516,0.000301,7]
[339045449,1727173840173,-151.0,0.000301,7]
[339045451,1727173840182,-250.684516,0.000301,7]
[339045453,1727173840192,-151.0,0.000301,7]
[339045455,1727173840201,-151.0,0.000301,7]
[339045457,1727173840210,-1688.227986,0.000301,7]
[339045459,1727173840220,-151.0,0.000301,7]
[339045461,1727173840229,-1688.227986,0.000301,7]
[339045463,1727173840242,-217.274054,0.000301,7]
[339045465,1727173840251,-151.0,0.000301,7]
[339045467,1727173840263,-217.274054,0.000301,7]
[339045469,1727173840272,-151.0,0.000301,7]
[339045471,1727173840282,-3387.181448,0.000301,7]
[339045473,1727173840292,-3387.181448,0.000301,7]
[339045475,1727173840301,-151.0,0.000301,7]
[339045476,1727173840311,-151.0,0.000301,7]
[339045478,1727173840321,-187.035962,0.000301,7]
[339045480,1727173840330,-395.242181,0.000301,7]
[339045482,1727173840340,-395.242181,0.000301,7]
[339045484,1727173840349,-151.0,0.000301,7]
[339045487,1727173840359,-151.0,0.000301,7]
[339045489,1727173840368,-151.0,0.000301,7]
[339045490,1727173840378,-646.351361,0.000301,7]
[339045492,1727173840387,-646.351361,0.000301,7]
[339045494,1727173840397,-176.74,0.00030116,120]
[339045496,1727173840406,-151.0,0.00030125,7]
[339045499,1727173840416,-151.0,0.00030125,7]
[339045501,1727173840426,-151.165416,0.00030125,7]
[339045503,1727173840436,-484.306666,0.00030125,7]
[339045504,1727173840446,-484.306666,0.00030125,7]
[339045507,1727173840456,-151.0,0.00030125,7]
[339045508,1727173840466,-151.0,0.00030125,7]
[339045510,1727173840475,-151.0,0.00030125,7]
[339045513,1727173840485,-151.0,0.00030125,7]
[339045515,1727173840495,-151.0,0.00030125,7]
[339045516,1727173840505,-151.0,0.00030125,7]
[339045518,1727173840514,-151.0,0.00030125,7]
[339045519,1727173840523,-151.0,0.00030125,7]
[339045521,1727173840533,-151.0,0.00030125,7]
[339045523,1727173840543,-151.0,0.00030125,7]
[339045525,1727173840553,-151.0,0.00030125,7]
[339045527,1727173840562,-151.0,0.00030125,7]
[339045529,1727173840572,-151.0,0.00030125,7]
[339045531,1727173840581,-153.056031,0.00030126,7]
[339045533,1727173840591,-171.345925,0.00030126,7]
[339045535,1727173840600,-171.345925,0.00030126,7]
[339045537,1727173840609,-151.0,0.00030126,7]
[339045539,1727173840618,-151.0,0.00030126,7]
[339045541,1727173840627,-151.0,0.00030126,7]
[339045543,1727173840636,-151.0,0.00030126,7]
[339045545,1727173840645,-151.0,0.00030126,7]
[339045547,1727173840656,-151.0,0.00030126,7]
[339045548,1727173840667,-484.306666,0.00030126,7]
[339045550,1727173840678,-484.306666,0.00030126,7]
[339045552,1727173840687,-151.0,0.00030126,7]
[339045554,1727173840696,-151.0,0.00030126,7]
[339045556,1727173840705,-151.0,0.00030126,7]
[339045558,1727173840715,-151.0,0.00030126,7]
[339045560,1727173840724,-151.0,0.00030126,7]
[339045562,1727173840733,-151.0,0.00030126,7]
[339045564,1727173840742,-151.0,0.00030126,7]
[339045566,1727173840751,-151.0,0.00030126,7]
[339045568,1727173840768,-151.0,0.00030126,7]
[339045570,1727173840777,-151.0,0.00030126,7]
[339045572,1727173840787,-151.0,0.00030126,7]
[339045574,1727173840796,-26942.7516653,0.00030136,9]
[339045576,1727173840805,-33655.68136812,0.00030136,9]
[339045578,1727173840817,-500.0,0.00030136,14]
[339045580,1727173840826,-500.0,0.00030136,14]
[339045582,1727173840836,-500.0,0.00030136,14]
[339045584,1727173840846,-506.81226098,0.00030136,14]
[339045586,1727173840855,-500.0,0.00030136,14]
[339045588,1727173840865,-503.51358545,0.00030136,14]
[339045590,1727173840874,-576.55262261,0.00030136,14]
[339045592,1727173840883,-500.0,0.00030136,14]
[339045594,1727173840893,-500.0,0.00030136,14]
[339045596,1727173840903,-500.0,0.00030136,14]
[339045598,1727173840913,-150.0,0.00030136,14]
[339045600,1727173840922,-500.0,0.00030136,14]
[339045602,1727173840932,-500.0,0.00030136,14]
[339045603,1727173840942,-503.8198438,0.00030136,14]
[339045606,1727173840952,-581.2,0.00030136,14]
[339045607,1727173840962,-500.65746054,0.00030136,14]
[339045609,1727173840971,-500.0,0.00030136,14]
[339045611,1727173840981,-505.08885621,0.00030136,14]
[339045614,1727173840992,-502.1297426,0.00030136,14]
[339045615,1727173841001,-500.0,0.00030136,14]
[339045617,1727173841011,-500.0,0.00030136,14]
[339045619,1727173841021,-500.0,0.00030136,14]
[339045621,1727173841030,-500.0,0.00030136,14]
[339045623,1727173841039,-500.0,0.00030136,14]
[339045625,1727173841049,-500.0,0.00030136,14]
[339045627,1727173841059,-576.29655146,0.00030136,14]
[339045629,1727173841068,-500.0,0.00030136,14]
[339045631,1727173841077,-500.0,0.00030136,14]
[339045633,1727173841087,-503.14754031,0.00030136,14]
[339045634,1727173841096,-500.0,0.00030136,14]
[339045635,1727173841105,-500.0,0.00030136,14]
[339045636,1727173841115,-500.0,0.00030136,14]
[339045637,1727173841124,-500.0,0.00030136,14]
[339045638,1727173841208,-410.54364765,0.00030136,14]
[339045639,1727173841219,-500.0,0.00030136,14]
[339045640,1727173841229,-500.0,0.00030136,14]
[339045641,1727173841239,-357.81195375,0.00030136,14]
[339045642,1727173841248,-500.0,0.00030136,14]
[339045643,1727173841260,-500.0,0.00030136,14]
[339045644,1727173841270,-500.0,0.00030136,14]
[339045645,1727173841279,-500.0,0.00030136,14]
[339045646,1727173841289,-336.87526578,0.00030136,14]
[339045647,1727173841298,-500.0,0.00030136,14]
[339045648,1727173841308,-501.8253248,0.00030136,14]
[339045649,1727173841317,-500.0,0.00030136,14]
[339045650,1727173841326,-500.0,0.00030136,14]
[339045651,1727173841336,-505.33155576,0.00030136,14]
[339045653,1727173841346,-500.0,0.00030136,14]
[339045654,1727173841356,-501.89863553,0.00030136,14]
[339045656,1727173841366,-614.97530887,0.00030136,14]
[339045658,1727173841375,-576.82763715,0.00030136,14]
[339045660,1727173841384,-282.57575242,0.00030136,14]
[339045662,1727173841394,-500.0,0.00030136,14]
[339045664,1727173841403,-502.4267533,0.00030136,14]
[339045666,1727173841413,-200.0,0.00030136,7]
[339045668,1727173841422,-540.67,0.00030136,14]
[339045670,1727173841433,-513.79093399,0.00030136,14]
[339045672,1727173841442,-500.0,0.00030136,14]
[339045675,1727173841453,-501.06291381,0.00030136,14]
[339045677,1727173841463,-500.0,0.00030136,14]
[339045679,1727173841472,-500.0,0.00030136,14]
[339045681,1727173841481,-500.0,0.00030136,14]
[339045683,1727173841499,-234.85202352,0.00030136,14]
[339045686,1727173841514,-500.0,0.00030136,14]
[339045688,1727173841524,-502.79801482,0.00030136,14]
[339045690,1727173841534,-500.0,0.00030136,14]
[339045692,1727173841545,-500.0,0.00030136,14]
[339045694,1727173841556,-649.12001302,0.00030136,14]
[339045696,1727173841567,-512.70794387,0.00030136,14]
[339045698,1727173841576,-502.90879983,0.00030136,14]
[339045700,1727173841587,-251.61202634,0.00030136,2]
[339045702,1727173841597,-502.33356759,0.00030136,14]
[339045704,1727173841606,-500.0,0.00030136,14]
[339045706,1727173841616,-500.0,0.00030136,14]
[339045708,1727173841627,-500.0,0.00030136,14]
[339045710,1727173841636,-500.0,0.00030136,14]
[339045712,1727173841646,-500.0,0.00030136,14]
[339045714,1727173841659,-500.0,0.00030136,14]
[339045716,1727173841669,-500.0,0.00030136,14]
[339045718,1727173841680,-500.0,0.00030136,14]
[339045720,1727173841690,-500.0,0.00030136,14]
[339045722,1727173841700,-500.0,0.00030136,14]
[339045725,1727173841711,-500.0,0.00030136,14]
[339045727,1727173841720,-503.60025818,0.00030136,14]
[339045729,1727173841730,-501.38503107,0.00030136,14]
[339045731,1727173841740,-500.0,0.00030136,14]
[339045733,1727173841749,-500.0,0.00030136,14]
[339045735,1727173841761,-500.0,0.00030136,14]
[339045737,1727173841771,-500.0,0.00030136,14]
[339045739,1727173841781,-500.0,0.00030136,14]
[339045741,1727173841790,-500.0,0.00030136,14]
[339045743,1727173841799,-500.0,0.00030136,14]
[339045745,1727173841809,-500.0,0.00030136,14]
[339045747,1727173841819,-185.0238154,0.00030136,14]
[339045749,1727173841828,-500.0,0.00030136,14]
[339045751,1727173841838,-171.345925,0.00030136,7]
[339045753,1727173841847,-171.345925,0.00030136,7]
[339045755,1727173841857,-171.345925,0.00030136,7]
[339045757,1727173841867,-502.3480134,0.00030136,14]
[339045759,1727173841876,-171.345925,0.00030136,7]
[339045760,1727173841885,-171.345925,0.00030136,7]
[339045762,1727173841895,-171.345925,0.00030136,7]
[339045764,1727173841906,-189.46026008,0.00030136,14]
[339045767,1727173841916,-500.0,0.00030136,14]
[339045769,1727173841926,-505.93899979,0.00030136,14]
[339045771,1727173841936,-363.90562904,0.00030136,14]
[339045773,1727173841946,-151.0,0.00030136,7]
[339045775,1727173841956,-151.0,0.00030136,7]
[339045777,1727173841965,-212.490271,0.00030136,7]
[339045779,1727173841976,-500.0,0.00030136,14]
[339045781,1727173841987,-500.0,0.00030136,14]
[339045783,1727173841997,-380.71558085,0.00030136,14]
[339045785,1727173842007,-505.88408799,0.00030136,14]
[339045787,1727173842018,-502.76902467,0.00030136,14]
[339045789,1727173842028,-500.0,0.00030136,14]
[339045791,1727173842038,-500.0,0.00030136,14]
[339045793,1727173842047,-151.0,0.00030136,7]
[339045795,1727173842057,-151.0,0.00030136,7]
[339045797,1727173842067,-505.03647372,0.00030136,14]
[339045799,1727173842076,-500.0,0.00030136,14]
[339045801,1727173842086,-502.6196713,0.00030136,14]
[339045803,1727173842095,-500.0,0.00030136,14]
[339045806,1727173842110,-505.79190321,0.00030136,14]
[339045808,1727173842120,-500.0,0.00030136,14]
[339045810,1727173842130,-502.28876441,0.00030136,14]
[339045812,1727173842140,-500.0,0.00030136,14]
[339045814,1727173842150,-500.0,0.00030136,14]
[339045816,1727173842161,-508.58207129,0.00030136,14]
[339045818,1727173842171,-510.59216753,0.00030136,14]
[339045820,1727173842180,-284.80703523,0.00030136,14]
[339045822,1727173842190,-500.0,0.00030136,14]
[339045824,1727173842200,-500.0,0.00030136,14]
[339045826,1727173842210,-502.45885656,0.00030136,14]
[339045828,1727173842220,-500.0,0.00030136,14]
[339045830,1727173842230,-500.0,0.00030136,14]
[339045832,1727173842240,-500.0,0.00030136,14]
[339045834,1727173842250,-506.02266922,0.00030136,14]
[339045836,1727173842260,-501.93022482,0.00030136,14]
[339045838,1727173842270,-500.0,0.00030136,14]
[339045841,1727173842280,-501.85945878,0.00030136,14]
[339045843,1727173842289,-503.28115464,0.00030136,14]
[339045845,1727173842299,-510.001769,0.00030136,14]
[339045847,1727173842309,-503.42355886,0.00030136,14]
[339045849,1727173842318,-505.97665765,0.00030136,14]
[339045852,1727173842327,-500.0,0.00030136,14]
[339045855,1727173842336,-500.0,0.00030136,14]
[339045858,1727173842346,-500.0,0.00030136,14]
[339045860,1727173842355,-502.23685426,0.00030136,14]
[339045862,1727173842365,-508.97367995,0.00030136,14]
[339045864,1727173842375,-500.0,0.00030136,14]
[339045866,1727173842385,-640.79797533,0.00030136,14]
[339045868,1727173842394,-508.68177542,0.00030136,14]
[339045871,1727173842404,-503.22491081,0.00030136,14]
[339045873,1727173842414,-500.0,0.00030136,14]
[339045875,1727173842424,-500.0,0.00030136,14]
[339045877,1727173842433,-500.0,0.00030136,14]
[339045879,1727173842443,-500.0,0.00030136,14]
[339045881,1727173842453,-500.0,0.00030136,14]
[339045883,1727173842462,-500.0,0.00030136,14]
[339045885,1727173842472,-500.56719655,0.00030136,14]
[339045889,1727173842482,-500.0,0.00030136,10]
[339045893,1727173842491,-263.642063,0.00030136,7]
[339045897,1727173842501,-500.0,0.00030136,14]
[339045903,1727173842512,-509.42840549,0.00030136,14]
[339045908,1727173842521,-500.78578628,0.00030136,14]
[339045912,1727173842531,-462.21674349,0.00030136,14]
[339045916,1727173842540,-503.95313366,0.00030136,14]
[339045919,1727173842550,-500.0,0.00030136,14]
[339045922,1727173842559,-501.70604804,0.00030136,14]
[339045924,1727173842569,-500.0,0.00030136,14]
[339045926,1727173842578,-151.0,0.00030136,7]
[339045928,1727173842588,-151.0,0.00030136,7]
[339045930,1727173842598,-151.0,0.00030136,7]
[339045932,1727173842607,-211.415959,0.00030136,7]
[339045934,1727173842617,-364.90711757,0.00030136,14]
[339045936,1727173842627,-500.0,0.00030136,14]
[339045938,1727173842636,-500.0,0.00030136,14]
[339045940,1727173842646,-500.0,0.00030136,14]
[339045942,1727173842655,-538.63059918,0.00030136,120]
[339045944,1727173842665,-500.0,0.00030136,14]
[339045946,1727173842675,-508.09646299,0.00030136,14]
[339045948,1727173842685,-500.0,0.00030136,14]
[339045950,1727173842694,-500.0,0.00030136,14]
[339045952,1727173842704,-500.0,0.00030136,14]
[339045965,1727173842813,-500.0,0.00030136,14]
[339045967,1727173842822,-509.06166717,0.00030136,14]
[339045969,1727173842832,-610.0367019,0.00030136,14]
[339045971,1727173842841,-258.3852388,0.00030136,14]
[339045973,1727173842850,-500.0,0.00030136,14]
[339045975,1727173842859,-151.0,0.00030136,7]
[339045977,1727173842869,-151.0,0.00030136,7]
[339045979,1727173842878,-500.0,0.00030136,14]
[339045981,1727173842887,-500.0,0.00030136,14]
[339045983,1727173842896,-562.62190692,0.00030136,14]
[339045985,1727173842906,-500.0,0.00030136,14]
[339045987,1727173842915,-601.23,0.00030136,14]
[339045989,1727173842924,-322.81617905,0.00030136,14]
[339045991,1727173842934,-500.0,0.00030136,14]
[339045993,1727173842943,-500.0,0.00030136,14]
[339045994,1727173842952,-500.0,0.00030136,14]
[339045996,1727173842961,-500.0,0.00030136,14]
[339045998,1727173842972,-484.306666,0.00030136,7]
[339046000,1727173842981,-484.306666,0.00030136,7]
[339046002,1727173842991,-500.0,0.00030136,14]
[339046004,1727173843001,-508.06438246,0.00030136,14]
[339046006,1727173843013,-484.306666,0.00030136,7]
[339046008,1727173843023,-500.0,0.00030136,14]
[339046011,1727173843033,-484.306666,0.00030136,7]
[339046013,1727173843042,-500.0,0.00030136,2]
[339046015,1727173843051,-500.0,0.00030136,14]
[339046016,1727173843060,-512.06895961,0.00030136,14]
[339046018,1727173843070,-500.0,0.00030136,14]
[339046021,1727173843079,-510.7760242,0.00030136,14]
[339046024,1727173843088,-505.87453744,0.00030136,14]
[339046027,1727173843098,-300.76250974,0.00030136,14]
[339046030,1727173843107,-507.74986757,0.00030136,14]
[339046031,1727173843116,-500.0,0.00030136,14]
[339046033,1727173843125,-500.0,0.00030136,14]
[339046035,1727173843134,-500.0,0.00030136,14]
[339046037,1727173843144,-505.90546695,0.00030136,14]
[339046039,1727173843153,-500.0,0.00030136,14]
[339046041,1727173843163,-500.0,0.00030136,14]
[339046043,1727173843173,-598.30410554,0.00030136,2]
[339046045,1727173843182,-151.0,0.00030136,7]
[339046047,1727173843191,-151.0,0.00030136,7]
[339046049,1727173843200,-500.0,0.00030136,14]
[339046051,1727173843210,-500.0,0.00030136,14]
[339046053,1727173843220,-200.0,0.00030136,14]
[339046055,1727173843229,-151.0,0.00030136,7]
[339046057,1727173843239,-151.0,0.00030136,7]
[339046059,1727173843248,-502.35322054,0.00030136,14]
[339046061,1727173843258,-501.42413082,0.00030136,14]
[339046063,1727173843267,-502.86764603,0.00030136,14]
[339046065,1727173843276,-500.0,0.00030136,14]
[339046068,1727173843286,-588.51867434,0.00030136,14]
[339046070,1727173843295,-151.0,0.00030136,7]
[339046072,1727173843305,-151.0,0.00030136,7]
[339046074,1727173843315,-500.0,0.00030136,14]
[339046076,1727173843324,-500.0,0.00030136,14]
[339046078,1727173843334,-500.0,0.00030136,14]
[339046080,1727173843346,-151.0,0.00030136,7]
[339046082,1727173843356,-297.728922,0.00030136,7]
[339046084,1727173843367,-500.0,0.00030136,14]
[339046086,1727173843376,-504.49070854,0.00030136,14]
[339046088,1727173843385,-507.20390431,0.00030136,14]
[339046090,1727173843395,-512.72147994,0.00030136,14]
[339046092,1727173843405,-151.0,0.00030136,7]
[339046094,1727173843416,-151.0,0.00030136,7]
[339046096,1727173843426,-502.51974901,0.00030136,14]
[339046098,1727173843436,-672.78,0.00030136,14]
[339046101,1727173843447,-500.0,0.00030136,14]
[339046103,1727173843456,-500.0,0.00030136,5]
[339046105,1727173843465,-505.69888964,0.00030136,14]
[339046107,1727173843475,-500.0,0.00030136,14]
[339046109,1727173843484,-507.02673291,0.00030136,14]
[339046111,1727173843493,-502.60746646,0.00030136,14]
[339046113,1727173843503,-500.0,0.00030136,14]
[339046115,1727173843513,-151.0,0.00030136,7]
[339046117,1727173843522,-500.0,0.00030136,14]
[339046119,1727173843533,-151.0,0.00030136,7]
[339046121,1727173843543,-500.0,0.00030136,14]
[339046123,1727173843555,-500.0,0.00030136,14]
[339046125,1727173843565,-504.82178185,0.00030136,14]
[339046127,1727173843574,-961.53,0.00030136,14]
[339046129,1727173843584,-151.0,0.00030136,7]
[339046131,1727173843593,-151.0,0.00030136,7]
[339046133,1727173843602,-500.0,0.00030136,14]
[339046135,1727173843612,-500.0,0.00030136,14]
[339046137,1727173843621,-479.0241984,0.00030136,14]
[339046139,1727173843632,-402.20963813,0.00030136,14]
[339046140,1727173843641,-507.19210302,0.00030136,14]
[339046141,1727173843654,-500.0,0.00030136,14]
[339046142,1727173843667,-505.47931923,0.00030136,14]
[339046143,1727173843676,-500.0,0.00030136,14]
[339046144,1727173843686,-765.35,0.00030136,2]
[339046145,1727173843696,-404.11320378,0.00030136,14]
[339046146,1727173843705,-500.0,0.00030136,14]
[339046147,1727173843715,-500.0,0.00030136,14]
[339046148,1727173843725,-502.66579729,0.00030136,14]
[339046149,1727173843735,-500.0,0.00030136,14]
[339046150,1727173843744,-500.0,0.00030136,14]
[339046151,1727173843753,-151.0,0.00030136,7]
[339046152,1727173843764,-151.0,0.00030136,7]
[339046153,1727173843773,-500.0,0.00030136,14]
[339046154,1727173843782,-506.82373403,0.00030136,14]
[339046155,1727173843792,-281.783042,0.00030136,7]
[339046156,1727173843801,-500.0,0.00030136,14]
[339046157,1727173843810,-151.0,0.00030136,7]
[339046158,1727173843820,-151.0,0.00030136,7]
[339046159,1727173843829,-500.0,0.00030136,14]
[339046160,1727173843838,-521.19441591,0.00030136,14]
[339046161,1727173843847,-500.0,0.00030136,10]
[339046162,1727173843856,-500.0,0.00030136,14]
[339046163,1727173843866,-580.49,0.00030136,14]
[339046164,1727173843875,-506.26819144,0.00030136,14]
[339046165,1727173843884,-505.00347395,0.00030136,14]
[339046166,1727173843893,-501.57545733,0.00030136,14]
[339046168,1727173843902,-500.0,0.00030136,14]
[339046170,1727173843911,-500.0,0.00030136,14]
[339046172,1727173843921,-500.0,0.00030136,14]
[339046173,1727173843930,-609.7803794,0.00030136,14]
[339046174,1727173843939,-510.67761271,0.00030136,14]
[339046176,1727173843948,-502.8176303,0.00030136,14]
[339046177,1727173843957,-500.0,0.00030136,14]
[339046178,1727173843967,-500.0,0.00030136,14]
[339046180,1727173843976,-385.63252677,0.00030136,14]
[339046182,1727173843985,-506.36430358,0.00030136,14]
[339046183,1727173843994,-504.467003,0.00030136,14]
[339046185,1727173844003,-328.10812098,0.00030136,14]
[339046186,1727173844015,-500.0,0.00030136,14]
[339046187,1727173844025,-500.0,0.00030136,14]
[339046188,1727173844035,-505.15753913,0.00030136,14]